[Event "Titled Tuesday Blitz July 05 Early 2022"]
[White "Gracia Alvarez, Gerardo Antonio"]
[Black "Bazeev, German"]
[WhiteFideId "5109124"]
[BlackFideId "24119350"]
[WhiteElo "2139"]
[BlackElo "2493"]
[Result "1/2-1/2"]
[Round "03"]
[TimeControl "180+1"]
[Date "2022.07.05"]
[WhiteClock "0:00:04"]
[BlackClock "0:00:55"]

1. e4 {[%clk 0:03:00]}  c5 {[%clk 0:02:59]} 2. Nc3 {[%clk 0:03:00]}  Nc6 {[%clk 0:02:59]} 3. Bb5 {[%clk 0:03:00]}  g6 {[%clk 0:02:58]} 4. Bxc6 {[%clk 0:02:58]}  dxc6 {[%clk 0:02:59]} 5. d3 {[%clk 0:02:57]}  Qc7 {[%clk 0:02:56]} 6. f4 {[%clk 0:02:55]}  Bg7 {[%clk 0:02:52]} 7. Nf3 {[%clk 0:02:53]}  c4 {[%clk 0:02:53]} 8. d4 {[%clk 0:02:45]}  Bg4 {[%clk 0:02:52]} 9. Be3 {[%clk 0:02:29]}  Rd8 {[%clk 0:02:41]} 10. e5 {[%clk 0:02:29]}  Nh6 {[%clk 0:02:36]} 11. h3 {[%clk 0:02:29]}  Nf5 {[%clk 0:02:32]} 12. hxg4 {[%clk 0:02:01]}  Nxe3 {[%clk 0:02:30]} 13. Qe2 {[%clk 0:02:01]}  Nxg4 {[%clk 0:02:22]} 14. Qxc4 {[%clk 0:02:00]}  Ne3 {[%clk 0:01:52]} 15. Qe2 {[%clk 0:01:59]}  Nd5 {[%clk 0:01:53]} 16. Nxd5 {[%clk 0:01:45]}  cxd5 {[%clk 0:01:54]} 17. O-O-O {[%clk 0:01:39]}  e6 {[%clk 0:01:51]} 18. g4 {[%clk 0:01:37]}  Kd7 {[%clk 0:01:48]} 19. Rd3 {[%clk 0:01:33]}  Rc8 {[%clk 0:01:41]} 20. Ng5 {[%clk 0:01:25]}  Ke8 {[%clk 0:01:31]} 21. Rxh7 {[%clk 0:00:57]}  Rxh7 {[%clk 0:01:28]} 22. Nxh7 {[%clk 0:00:57]}  Qc4 {[%clk 0:01:28]} 23. Kb1 {[%clk 0:00:49]}  Ke7 {[%clk 0:01:28]} 24. b3 {[%clk 0:00:22]}  Qb4 {[%clk 0:01:25]} 25. f5 {[%clk 0:00:18]}  Kd7 {[%clk 0:01:14]} 26. Qf3 {[%clk 0:00:05]}  gxf5 {[%clk 0:01:12]} 27. gxf5 {[%clk 0:00:05]}  Rh8 {[%clk 0:01:13]} 28. fxe6+ {[%clk 0:00:04]}  fxe6 {[%clk 0:01:14]} 29. Qf7+ {[%clk 0:00:04]}  Qe7 {[%clk 0:01:14]} 30. Qxe7+ {[%clk 0:00:04]}  Kxe7 {[%clk 0:01:15]} 31. Rh3 {[%clk 0:00:05]}  b5 {[%clk 0:01:12]} 32. Ng5 {[%clk 0:00:05]}  Rxh3 {[%clk 0:01:09]} 33. Nxh3 {[%clk 0:00:04]}  b4 {[%clk 0:01:10]} 34. c3 {[%clk 0:00:04]}  a5 {[%clk 0:01:06]} 35. Kc2 {[%clk 0:00:04]}  Bh6 {[%clk 0:01:06]} 36. Nf2 {[%clk 0:00:03]}  Kf7 {[%clk 0:01:05]} 37. cxb4 {[%clk 0:00:03]}  axb4 {[%clk 0:01:04]} 38. Kd3 {[%clk 0:00:02]}  Kg6 {[%clk 0:01:03]} 39. Nd1 {[%clk 0:00:02]}  Kf5 {[%clk 0:01:02]} 40. Nb2 {[%clk 0:00:02]}  Kf4 {[%clk 0:00:59]} 41. Na4 {[%clk 0:00:03]}  Bf8 {[%clk 0:00:58]} 42. Nb6 {[%clk 0:00:03]}  Be7 {[%clk 0:00:54]} 43. Nd7 {[%clk 0:00:03]}  Kf5 {[%clk 0:00:54]} 44. Nb6 {[%clk 0:00:03]}  Bf8 {[%clk 0:00:54]} 45. Nc8 {[%clk 0:00:03]}  Be7 {[%clk 0:00:55]} 46. Nb6 {[%clk 0:00:03]}  Bf8 {[%clk 0:00:55]} 47. Nd7 {[%clk 0:00:04]}  Be7 {[%clk 0:00:55]} 48. Nb6 {[%clk 0:00:04]} 1/2-1/2


[Site "https://www.chess.com"]

[Event "Titled Tuesday Blitz July 05 Early 2022"]
[White "Maximov, Dmitry"]
[Black "Lazavik, Denis"]
[WhiteFideId "14105659"]
[BlackFideId "13515110"]
[WhiteElo "2494"]
[BlackElo "2437"]
[Result "1-0"]
[Round "03"]
[TimeControl "180+1"]
[Date "2022.07.05"]
[WhiteClock "0:00:05"]
[BlackClock "0:00:03"]

1. e4 {[%clk 0:03:00]}  c5 {[%clk 0:02:59]} 2. Nf3 {[%clk 0:03:00]}  e6 {[%clk 0:03:00]} 3. c3 {[%clk 0:03:00]}  Nf6 {[%clk 0:02:59]} 4. Bd3 {[%clk 0:03:00]}  Nc6 {[%clk 0:02:48]} 5. Bc2 {[%clk 0:02:59]}  d5 {[%clk 0:02:44]} 6. e5 {[%clk 0:03:00]}  Nd7 {[%clk 0:02:44]} 7. d4 {[%clk 0:03:00]}  b5 {[%clk 0:02:39]} 8. O-O {[%clk 0:02:59]}  a5 {[%clk 0:02:39]} 9. Re1 {[%clk 0:02:59]}  Qb6 {[%clk 0:02:38]} 10. a3 {[%clk 0:02:23]}  Be7 {[%clk 0:02:32]} 11. Be3 {[%clk 0:02:22]}  cxd4 {[%clk 0:02:08]} 12. cxd4 {[%clk 0:02:22]}  Ba6 {[%clk 0:02:03]} 13. Nbd2 {[%clk 0:02:16]}  b4 {[%clk 0:02:03]} 14. a4 {[%clk 0:02:15]}  h6 {[%clk 0:02:00]} 15. Rc1 {[%clk 0:02:08]}  O-O {[%clk 0:01:54]} 16. b3 {[%clk 0:01:52]}  Rfc8 {[%clk 0:01:53]} 17. Nf1 {[%clk 0:01:52]}  Bf8 {[%clk 0:01:50]} 18. Ng3 {[%clk 0:01:52]}  Ne7 {[%clk 0:01:50]} 19. h4 {[%clk 0:01:44]}  Rc3 {[%clk 0:01:46]} 20. Bb1 {[%clk 0:01:27]}  Rac8 {[%clk 0:01:44]} 21. Rxc3 {[%clk 0:01:20]}  Rxc3 {[%clk 0:01:42]} 22. Nh5 {[%clk 0:01:04]}  Ng6 {[%clk 0:00:56]} 23. Bxg6 {[%clk 0:00:56]}  fxg6 {[%clk 0:00:54]} 24. Nf4 {[%clk 0:00:56]}  Kh7 {[%clk 0:00:20]} 25. Qb1 {[%clk 0:00:55]}  Kg8 {[%clk 0:00:07]} 26. Qxg6 {[%clk 0:00:48]}  Rc6 {[%clk 0:00:07]} 27. Nh5 {[%clk 0:00:43]}  Kh8 {[%clk 0:00:07]} 28. Qe8 {[%clk 0:00:27]}  Qc7 {[%clk 0:00:05]} 29. Qf7 {[%clk 0:00:22]}  Qd8 {[%clk 0:00:04]} 30. Bg5 {[%clk 0:00:18]}  Qc8 {[%clk 0:00:03]} 31. Re3 {[%clk 0:00:17]}  Rc1+ {[%clk 0:00:02]} 32. Kh2 {[%clk 0:00:17]}  Rc3 {[%clk 0:00:03]} 33. Be7 {[%clk 0:00:12]}  Rxe3 {[%clk 0:00:03]} 34. fxe3 {[%clk 0:00:12]}  Bd3 {[%clk 0:00:02]} 35. Bxf8 {[%clk 0:00:11]}  Qxf8 {[%clk 0:00:03]} 36. Qxd7 {[%clk 0:00:11]}  Be4 {[%clk 0:00:03]} 37. Nf4 {[%clk 0:00:11]}  Kh7 {[%clk 0:00:02]} 38. Nxe6 {[%clk 0:00:10]}  Qg8 {[%clk 0:00:03]} 39. Kg3 {[%clk 0:00:08]}  Bf5 {[%clk 0:00:02]} 40. Neg5+ {[%clk 0:00:08]}  Kg6 {[%clk 0:00:02]} 41. Qd6+ {[%clk 0:00:08]}  Kh5 {[%clk 0:00:03]} 42. Nh3 {[%clk 0:00:06]}  g5 {[%clk 0:00:03]} 43. hxg5 {[%clk 0:00:06]}  hxg5 {[%clk 0:00:04]} 44. Nhxg5 {[%clk 0:00:05]}  Bg6 {[%clk 0:00:03]} 45. Kf2 {[%clk 0:00:05]}  Qc8 {[%clk 0:00:03]} 46. Qf6 {[%clk 0:00:05]}  Qc2+ {[%clk 0:00:04]} 47. Kg3 {[%clk 0:00:05]}  Qe2 {[%clk 0:00:03]} 48. Qh8+ {[%clk 0:00:05]} 1-0


[Site "https://www.chess.com"]

[Event "Titled Tuesday Blitz July 05 Early 2022"]
[White "Niemann, Hans Moke"]
[Black "Atakishiyev, Elmar"]
[WhiteFideId "2093596"]
[BlackFideId "13410547"]
[WhiteElo "2632"]
[BlackElo "2087"]
[Result "1-0"]
[Round "03"]
[TimeControl "180+1"]
[Date "2022.07.05"]
[WhiteClock "0:00:51"]
[BlackClock "0:00:01"]

1. d4 {[%clk 0:03:00]}  Nf6 {[%clk 0:02:59]} 2. Nc3 {[%clk 0:03:00]}  e6 {[%clk 0:02:58]} 3. Bf4 {[%clk 0:03:00]}  b6 {[%clk 0:02:57]} 4. e4 {[%clk 0:02:59]}  Bb4 {[%clk 0:02:56]} 5. e5 {[%clk 0:02:59]}  Nd5 {[%clk 0:02:56]} 6. Bd2 {[%clk 0:02:58]}  Bb7 {[%clk 0:02:26]} 7. Qg4 {[%clk 0:02:56]}  Kf8 {[%clk 0:02:21]} 8. Nf3 {[%clk 0:02:53]}  Nxc3 {[%clk 0:01:56]} 9. bxc3 {[%clk 0:02:52]}  Be7 {[%clk 0:01:56]} 10. Bd3 {[%clk 0:02:50]}  d5 {[%clk 0:01:56]} 11. h4 {[%clk 0:02:44]}  c5 {[%clk 0:01:54]} 12. Ng5 {[%clk 0:02:33]}  Bxg5 {[%clk 0:01:36]} 13. hxg5 {[%clk 0:02:29]}  g6 {[%clk 0:01:36]} 14. Qf4 {[%clk 0:02:24]}  Kg8 {[%clk 0:01:31]} 15. f3 {[%clk 0:02:13]}  Ba6 {[%clk 0:01:31]} 16. Kf2 {[%clk 0:02:08]}  Bxd3 {[%clk 0:01:30]} 17. cxd3 {[%clk 0:02:09]}  Nc6 {[%clk 0:01:29]} 18. Rh6 {[%clk 0:02:05]}  Ne7 {[%clk 0:01:23]} 19. g4 {[%clk 0:02:01]}  Qf8 {[%clk 0:01:10]} 20. dxc5 {[%clk 0:01:58]}  bxc5 {[%clk 0:01:10]} 21. Rb1 {[%clk 0:01:57]}  Nc6 {[%clk 0:01:05]} 22. Rhh1 {[%clk 0:01:49]}  Rb8 {[%clk 0:00:58]} 23. Ke2 {[%clk 0:01:43]}  Qd8 {[%clk 0:00:53]} 24. Qa4 {[%clk 0:01:39]}  Qc7 {[%clk 0:00:46]} 25. Rxb8+ {[%clk 0:01:32]}  Nxb8 {[%clk 0:00:47]} 26. d4 {[%clk 0:01:23]}  Kg7 {[%clk 0:00:46]} 27. Rb1 {[%clk 0:01:16]}  Nc6 {[%clk 0:00:47]} 28. dxc5 {[%clk 0:01:04]}  Qxe5+ {[%clk 0:00:37]} 29. Kd1 {[%clk 0:01:04]}  Rc8 {[%clk 0:00:21]} 30. Qf4 {[%clk 0:01:03]}  Qxf4 {[%clk 0:00:12]} 31. Bxf4 {[%clk 0:01:04]}  e5 {[%clk 0:00:12]} 32. Bg3 {[%clk 0:01:05]}  f6 {[%clk 0:00:12]} 33. Rb7+ {[%clk 0:01:04]}  Kg8 {[%clk 0:00:08]} 34. gxf6 {[%clk 0:01:04]}  d4 {[%clk 0:00:06]} 35. cxd4 {[%clk 0:01:03]}  Rd8 {[%clk 0:00:07]} 36. Rc7 {[%clk 0:00:58]}  Nxd4 {[%clk 0:00:07]} 37. Ke1 {[%clk 0:00:52]}  Nxf3+ {[%clk 0:00:06]} 38. Kf2 {[%clk 0:00:53]}  Nd4 {[%clk 0:00:03]} 39. Bxe5 {[%clk 0:00:51]}  Ne6 {[%clk 0:00:03]} 40. f7+ {[%clk 0:00:50]}  Kf8 {[%clk 0:00:03]} 41. Bd6+ {[%clk 0:00:50]}  Rxd6 {[%clk 0:00:01]} 42. cxd6 {[%clk 0:00:51]} 1-0


[Site "https://www.chess.com"]

[Event "Titled Tuesday Blitz July 05 Early 2022"]
[White "Paichadze, Luka"]
[Black "Tokman, Ariel"]
[WhiteFideId "13602934"]
[BlackFideId "117420"]
[WhiteElo "2537"]
[BlackElo "2268"]
[Result "0-1"]
[Round "03"]
[TimeControl "180+1"]
[Date "2022.07.05"]
[WhiteClock "0:00:30"]
[BlackClock "0:02:22"]

1. e4 {[%clk 0:03:00]}  e5 {[%clk 0:02:58]} 2. Nf3 {[%clk 0:02:58]}  Nc6 {[%clk 0:02:58]} 3. d4 {[%clk 0:02:58]}  exd4 {[%clk 0:02:58]} 4. Nxd4 {[%clk 0:02:59]}  Nf6 {[%clk 0:02:59]} 5. Nxc6 {[%clk 0:02:58]}  bxc6 {[%clk 0:02:56]} 6. Nc3 {[%clk 0:02:59]}  d6 {[%clk 0:02:49]} 7. Bd3 {[%clk 0:02:56]}  Be7 {[%clk 0:02:48]} 8. O-O {[%clk 0:02:55]}  O-O {[%clk 0:02:48]} 9. h3 {[%clk 0:02:54]}  Nd7 {[%clk 0:02:48]} 10. Be3 {[%clk 0:02:51]}  Bf6 {[%clk 0:02:47]} 11. Rb1 {[%clk 0:02:49]}  a5 {[%clk 0:02:46]} 12. f4 {[%clk 0:02:47]}  Re8 {[%clk 0:02:46]} 13. Ne2 {[%clk 0:02:44]}  Ba6 {[%clk 0:02:34]} 14. Ng3 {[%clk 0:00:30]}  Bxd3 {[%clk 0:02:22]} 0-1


[Site "https://www.chess.com"]

[Event "Titled Tuesday Blitz July 05 Early 2022"]
[White "Rendle, Thomas E"]
[Black "Melkumyan, Hrant"]
[WhiteFideId "408760"]
[BlackFideId "13302485"]
[WhiteElo "2428"]
[BlackElo "2604"]
[Result "0-1"]
[Round "03"]
[TimeControl "180+1"]
[Date "2022.07.05"]
[WhiteClock "0:00:09"]
[BlackClock "0:01:25"]

1. Nf3 {[%clk 0:03:00]}  d5 {[%clk 0:02:55]} 2. e3 {[%clk 0:02:59]}  c5 {[%clk 0:02:53]} 3. b3 {[%clk 0:02:58]}  Nc6 {[%clk 0:02:53]} 4. Bb2 {[%clk 0:02:58]}  a6 {[%clk 0:02:52]} 5. d4 {[%clk 0:02:56]}  cxd4 {[%clk 0:02:52]} 6. exd4 {[%clk 0:02:54]}  Bg4 {[%clk 0:02:50]} 7. Nbd2 {[%clk 0:02:51]}  e6 {[%clk 0:02:50]} 8. a3 {[%clk 0:02:48]}  Nge7 {[%clk 0:02:49]} 9. h3 {[%clk 0:02:43]}  Bh5 {[%clk 0:02:48]} 10. Bd3 {[%clk 0:02:40]}  Bg6 {[%clk 0:02:47]} 11. Nf1 {[%clk 0:02:38]}  Nf5 {[%clk 0:02:41]} 12. Ne3 {[%clk 0:02:32]}  Nxe3 {[%clk 0:02:35]} 13. fxe3 {[%clk 0:02:32]}  Bd6 {[%clk 0:02:36]} 14. O-O {[%clk 0:02:30]}  O-O {[%clk 0:02:35]} 15. Qe2 {[%clk 0:02:27]}  b5 {[%clk 0:02:31]} 16. e4 {[%clk 0:02:24]}  dxe4 {[%clk 0:02:28]} 17. Bxe4 {[%clk 0:02:25]}  Rc8 {[%clk 0:02:28]} 18. Rad1 {[%clk 0:02:22]}  Ne7 {[%clk 0:02:25]} 19. Ne5 {[%clk 0:02:15]}  Bxe5 {[%clk 0:02:20]} 20. dxe5 {[%clk 0:02:13]}  Qc7 {[%clk 0:02:20]} 21. Rf2 {[%clk 0:01:56]}  Rfd8 {[%clk 0:02:14]} 22. Rdf1 {[%clk 0:01:56]}  Rf8 {[%clk 0:02:01]} 23. h4 {[%clk 0:01:43]}  Bxe4 {[%clk 0:01:53]} 24. Qxe4 {[%clk 0:01:44]}  Nf5 {[%clk 0:01:54]} 25. Qf4 {[%clk 0:00:53]}  Qb6 {[%clk 0:01:54]} 26. Kh2 {[%clk 0:00:52]}  Ne3 {[%clk 0:01:47]} 27. Re1 {[%clk 0:00:41]}  Ng4+ {[%clk 0:01:46]} 28. Qxg4 {[%clk 0:00:41]}  Qxf2 {[%clk 0:01:47]} 29. Re2 {[%clk 0:00:39]}  Qf5 {[%clk 0:01:47]} 30. Qxf5 {[%clk 0:00:32]}  exf5 {[%clk 0:01:48]} 31. Bd4 {[%clk 0:00:28]}  Rfe8 {[%clk 0:01:42]} 32. c3 {[%clk 0:00:26]}  f6 {[%clk 0:01:42]} 33. e6 {[%clk 0:00:22]}  Rc6 {[%clk 0:01:42]} 34. Rf2 {[%clk 0:00:19]}  g6 {[%clk 0:01:39]} 35. Bxf6 {[%clk 0:00:19]}  Rexe6 {[%clk 0:01:40]} 36. Bd4 {[%clk 0:00:18]}  Re4 {[%clk 0:01:40]} 37. g3 {[%clk 0:00:18]}  Kf7 {[%clk 0:01:40]} 38. Kh3 {[%clk 0:00:18]}  Ke6 {[%clk 0:01:40]} 39. Ra2 {[%clk 0:00:17]}  a5 {[%clk 0:01:40]} 40. b4 {[%clk 0:00:17]}  a4 {[%clk 0:01:39]} 41. Rf2 {[%clk 0:00:16]}  Rc4 {[%clk 0:01:36]} 42. Rd2 {[%clk 0:00:15]}  h6 {[%clk 0:01:31]} 43. Kg2 {[%clk 0:00:15]}  g5 {[%clk 0:01:31]} 44. hxg5 {[%clk 0:00:16]}  hxg5 {[%clk 0:01:32]} 45. Kf3 {[%clk 0:00:16]}  Rexd4 {[%clk 0:01:31]} 46. cxd4 {[%clk 0:00:14]}  Rc3+ {[%clk 0:01:30]} 47. Kf2 {[%clk 0:00:14]}  Rxa3 {[%clk 0:01:30]} 48. Re2+ {[%clk 0:00:14]}  Kd5 {[%clk 0:01:25]} 49. Re5+ {[%clk 0:00:14]}  Kc4 {[%clk 0:01:26]} 50. Rxf5 {[%clk 0:00:13]}  Rd3 {[%clk 0:01:24]} 51. Rxg5 {[%clk 0:00:13]}  a3 {[%clk 0:01:24]} 52. Rg8 {[%clk 0:00:12]}  Kxb4 {[%clk 0:01:24]} 53. Ra8 {[%clk 0:00:09]}  Rxd4 {[%clk 0:01:24]} 54. Ke3 {[%clk 0:00:09]}  Rc4 {[%clk 0:01:24]} 55. Kf3 {[%clk 0:00:09]}  Kb3 {[%clk 0:01:24]} 56. g4 {[%clk 0:00:09]}  a2 {[%clk 0:01:25]} 57. g5 {[%clk 0:00:09]}  Ra4 {[%clk 0:01:25]} 0-1


[Site "https://www.chess.com"]

[Event "Titled Tuesday Blitz July 05 Early 2022"]
[White "Rosen, Eric"]
[Black "Martinez Alcantara, Jose Eduardo"]
[WhiteFideId "2032562"]
[BlackFideId "3805662"]
[WhiteElo "2362"]
[BlackElo "2703"]
[Result "1-0"]
[Round "03"]
[TimeControl "180+1"]
[Date "2022.07.05"]
[WhiteClock "0:00:23"]
[BlackClock "0:01:51"]

1. d4 {[%clk 0:03:00]}  Nf6 {[%clk 0:03:00]} 2. Bf4 {[%clk 0:02:57]}  e6 {[%clk 0:03:00]} 3. e3 {[%clk 0:02:57]}  b6 {[%clk 0:03:01]} 4. Qf3 {[%clk 0:02:56]}  Bb7 {[%clk 0:03:02]} 5. Qxb7 {[%clk 0:02:56]}  Nc6 {[%clk 0:02:57]} 6. Bxc7 {[%clk 0:02:56]}  Qc8 {[%clk 0:02:51]} 7. Ba6 {[%clk 0:02:55]}  Nb4 {[%clk 0:02:45]} 8. Qxc8+ {[%clk 0:02:49]}  Rxc8 {[%clk 0:02:46]} 9. Bxc8 {[%clk 0:02:50]}  Nxc2+ {[%clk 0:02:47]} 10. Kd2 {[%clk 0:02:31]}  Nxa1 {[%clk 0:02:48]} 11. Bb7 {[%clk 0:02:30]}  Bb4+ {[%clk 0:02:42]} 12. Nc3 {[%clk 0:02:30]}  d6 {[%clk 0:02:39]} 13. Bc6+ {[%clk 0:01:44]}  Ke7 {[%clk 0:02:38]} 14. Ne2 {[%clk 0:01:35]}  Rc8 {[%clk 0:02:34]} 15. Bf3 {[%clk 0:01:31]}  Nb3+ {[%clk 0:02:27]} 16. axb3 {[%clk 0:01:31]}  Rxc7 {[%clk 0:02:27]} 17. Ra1 {[%clk 0:01:29]}  a5 {[%clk 0:02:28]} 18. g3 {[%clk 0:01:27]}  g5 {[%clk 0:02:27]} 19. h3 {[%clk 0:01:26]}  d5 {[%clk 0:02:28]} 20. Nc1 {[%clk 0:01:25]}  h5 {[%clk 0:02:17]} 21. Nd3 {[%clk 0:01:18]}  g4 {[%clk 0:02:17]} 22. hxg4 {[%clk 0:01:16]}  hxg4 {[%clk 0:02:18]} 23. Bg2 {[%clk 0:01:17]}  Kf8 {[%clk 0:02:15]} 24. Nxb4 {[%clk 0:01:11]}  axb4 {[%clk 0:02:16]} 25. Ne2 {[%clk 0:01:12]}  Kg7 {[%clk 0:02:08]} 26. Ra4 {[%clk 0:01:09]}  Rc8 {[%clk 0:02:06]} 27. Rxb4 {[%clk 0:01:09]}  Rh8 {[%clk 0:02:07]} 28. Nf4 {[%clk 0:00:57]}  Rb8 {[%clk 0:02:04]} 29. Nd3 {[%clk 0:00:55]}  Ne8 {[%clk 0:02:02]} 30. Ra4 {[%clk 0:00:55]}  Rb7 {[%clk 0:02:01]} 31. Ne5 {[%clk 0:00:53]}  Nd6 {[%clk 0:02:02]} 32. Nxg4 {[%clk 0:00:51]}  f6 {[%clk 0:02:02]} 33. Nh2 {[%clk 0:00:50]}  Kg6 {[%clk 0:02:02]} 34. Nf3 {[%clk 0:00:46]}  Ne4+ {[%clk 0:02:02]} 35. Ke2 {[%clk 0:00:47]}  Nd6 {[%clk 0:02:03]} 36. Ne1 {[%clk 0:00:47]}  Rc7 {[%clk 0:02:03]} 37. Kd2 {[%clk 0:00:47]}  Rh7 {[%clk 0:02:03]} 38. Ra6 {[%clk 0:00:45]}  Rb7 {[%clk 0:02:01]} 39. Nd3 {[%clk 0:00:46]}  Kf7 {[%clk 0:02:01]} 40. Ra8 {[%clk 0:00:40]}  Nf5 {[%clk 0:01:52]} 41. Bh3 {[%clk 0:00:38]}  Nd6 {[%clk 0:01:52]} 42. Rh8 {[%clk 0:00:37]}  Kg7 {[%clk 0:01:50]} 43. Rd8 {[%clk 0:00:37]}  Ne4+ {[%clk 0:01:50]} 44. Ke2 {[%clk 0:00:35]}  Rc7 {[%clk 0:01:50]} 45. Bxe6 {[%clk 0:00:29]}  Rc2+ {[%clk 0:01:51]} 46. Kf1 {[%clk 0:00:30]}  Nd2+ {[%clk 0:01:48]} 47. Kg2 {[%clk 0:00:29]}  Nxb3 {[%clk 0:01:46]} 48. Bxd5 {[%clk 0:00:27]}  Nd2 {[%clk 0:01:46]} 49. Rb8 {[%clk 0:00:25]}  f5 {[%clk 0:01:41]} 50. Rxb6 {[%clk 0:00:25]}  Nb1 {[%clk 0:01:40]} 51. Nf4 {[%clk 0:00:22]}  Kf8 {[%clk 0:01:41]} 52. Rf6+ {[%clk 0:00:20]}  Ke7 {[%clk 0:01:41]} 53. Rxf5 {[%clk 0:00:20]}  Kd6 {[%clk 0:01:42]} 54. Rf6+ {[%clk 0:00:20]}  Ke7 {[%clk 0:01:43]} 55. Re6+ {[%clk 0:00:20]}  Kd7 {[%clk 0:01:43]} 56. Be4 {[%clk 0:00:20]}  Rxb2 {[%clk 0:01:42]} 57. Bxb1 {[%clk 0:00:20]}  Rxb1 {[%clk 0:01:43]} 58. Re5 {[%clk 0:00:21]}  Rb6 {[%clk 0:01:44]} 59. Kf3 {[%clk 0:00:21]}  Rh6 {[%clk 0:01:44]} 60. g4 {[%clk 0:00:22]}  Rh1 {[%clk 0:01:45]} 61. Ke4 {[%clk 0:00:22]}  Rd1 {[%clk 0:01:46]} 62. f3 {[%clk 0:00:23]}  Rc1 {[%clk 0:01:47]} 63. Kf5 {[%clk 0:00:23]}  Rb1 {[%clk 0:01:48]} 64. g5 {[%clk 0:00:24]}  Ra1 {[%clk 0:01:49]} 65. g6 {[%clk 0:00:24]}  Ra3 {[%clk 0:01:50]} 66. g7 {[%clk 0:00:23]}  Ra4 {[%clk 0:01:51]} 67. g8=Q {[%clk 0:00:23]} 1-0


[Site "https://www.chess.com"]

[Event "Titled Tuesday Blitz July 05 Early 2022"]
[White "Severino, Sander"]
[Black "Kovalev, Vladislav"]
[WhiteFideId "5204100"]
[BlackFideId "13504398"]
[WhiteElo "2408"]
[BlackElo "2530"]
[Result "0-1"]
[Round "03"]
[TimeControl "180+1"]
[Date "2022.07.05"]
[WhiteClock "0:00:05"]
[BlackClock "0:00:15"]

1. d4 {[%clk 0:03:00]}  Nf6 {[%clk 0:03:00]} 2. c4 {[%clk 0:02:59]}  e6 {[%clk 0:03:00]} 3. Nf3 {[%clk 0:02:58]}  Bb4+ {[%clk 0:03:01]} 4. Bd2 {[%clk 0:02:56]}  Qe7 {[%clk 0:03:01]} 5. Nc3 {[%clk 0:02:54]}  b6 {[%clk 0:02:58]} 6. e3 {[%clk 0:02:53]}  Bb7 {[%clk 0:02:59]} 7. Bd3 {[%clk 0:02:53]}  Bxc3 {[%clk 0:02:55]} 8. Bxc3 {[%clk 0:02:52]}  Ne4 {[%clk 0:02:56]} 9. Qc2 {[%clk 0:02:51]}  f5 {[%clk 0:02:56]} 10. O-O-O {[%clk 0:02:47]}  O-O {[%clk 0:02:42]} 11. Rhg1 {[%clk 0:02:33]}  d6 {[%clk 0:02:33]} 12. b3 {[%clk 0:02:25]}  Nxc3 {[%clk 0:02:24]} 13. Qxc3 {[%clk 0:02:25]}  Nd7 {[%clk 0:02:25]} 14. Nd2 {[%clk 0:02:21]}  a5 {[%clk 0:02:24]} 15. f3 {[%clk 0:02:15]}  c5 {[%clk 0:02:13]} 16. Bc2 {[%clk 0:01:53]}  Rad8 {[%clk 0:02:02]} 17. Kb1 {[%clk 0:01:38]}  Qh4 {[%clk 0:02:01]} 18. h3 {[%clk 0:01:36]}  Qg3 {[%clk 0:01:50]} 19. Kb2 {[%clk 0:01:24]}  Nf6 {[%clk 0:01:50]} 20. Nb1 {[%clk 0:01:11]}  Bc6 {[%clk 0:01:27]} 21. Qe1 {[%clk 0:01:09]}  Qg5 {[%clk 0:01:21]} 22. Nc3 {[%clk 0:01:08]}  Rfe8 {[%clk 0:01:21]} 23. f4 {[%clk 0:01:05]}  Qh5 {[%clk 0:01:07]} 24. Qf2 {[%clk 0:00:38]}  g6 {[%clk 0:00:58]} 25. Rd2 {[%clk 0:00:32]}  Qh6 {[%clk 0:00:57]} 26. Rgd1 {[%clk 0:00:29]}  Rd7 {[%clk 0:00:54]} 27. dxc5 {[%clk 0:00:18]}  dxc5 {[%clk 0:00:55]} 28. Rd6 {[%clk 0:00:18]}  Rxd6 {[%clk 0:00:42]} 29. Rxd6 {[%clk 0:00:19]}  Rc8 {[%clk 0:00:40]} 30. Rxe6 {[%clk 0:00:17]}  Qf8 {[%clk 0:00:41]} 31. Qd2 {[%clk 0:00:17]}  Rd8 {[%clk 0:00:41]} 32. Qe2 {[%clk 0:00:15]}  Rd6 {[%clk 0:00:41]} 33. Rxd6 {[%clk 0:00:14]}  Qxd6 {[%clk 0:00:42]} 34. g4 {[%clk 0:00:14]}  fxg4 {[%clk 0:00:40]} 35. hxg4 {[%clk 0:00:15]}  a4 {[%clk 0:00:28]} 36. g5 {[%clk 0:00:15]}  Nh5 {[%clk 0:00:26]} 37. Qd3 {[%clk 0:00:14]}  Qe7 {[%clk 0:00:18]} 38. bxa4 {[%clk 0:00:14]}  Ng3 {[%clk 0:00:18]} 39. Nd5 {[%clk 0:00:14]}  Bxd5 {[%clk 0:00:16]} 40. Qxd5+ {[%clk 0:00:13]}  Kg7 {[%clk 0:00:17]} 41. e4 {[%clk 0:00:13]}  Ne2 {[%clk 0:00:17]} 42. f5 {[%clk 0:00:09]}  Qxg5 {[%clk 0:00:16]} 43. Qb7+ {[%clk 0:00:08]}  Kh6 {[%clk 0:00:16]} 44. Qxb6 {[%clk 0:00:08]}  Qe3 {[%clk 0:00:14]} 45. fxg6 {[%clk 0:00:07]}  Qc3+ {[%clk 0:00:13]} 46. Kb1 {[%clk 0:00:06]}  Qe1+ {[%clk 0:00:14]} 47. Kb2 {[%clk 0:00:06]}  Qc1+ {[%clk 0:00:15]} 48. Kb3 {[%clk 0:00:05]}  Nd4+ {[%clk 0:00:15]} 0-1


[Site "https://www.chess.com"]